bitfinex/quotes_BTCUSD_20241101
["timestamp","ask_amount","ask_price","bid_price","bid_amount"]
[1730503890079,0.70365166,69596.0,69595.0,0.00497937]
[1730503893188,0.70357033,69596.0,69595.0,0.00497937]
[1730503893412,0.69280599,69596.0,69595.0,0.00497937]
[1730503893635,0.70357013,69596.0,69595.0,0.00497937]
[1730503893855,0.69011496,69596.0,69595.0,0.00497937]
[1730503894093,0.64726879,69596.0,69595.0,0.00497937]
[1730503894313,0.62426879,69596.0,69595.0,0.00497937]
[1730503896985,0.62426557,69596.0,69595.0,0.00497937]
[1730503897656,0.32699989,69596.0,69595.0,0.00497937]
[1730503897879,0.32699989,69596.0,69595.0,0.10037937]
[1730503897880,0.48573268,69596.0,69595.0,0.10037937]
[1730503902304,0.32699989,69596.0,69595.0,0.10037937]
[1730503902517,0.48574721,69596.0,69595.0,0.10037937]
[1730503904039,0.47498848,69596.0,69595.0,0.10037937]
[1730503904263,0.48575329,69596.0,69595.0,0.10037937]
[1730503907444,0.48575329,69596.0,69595.0,0.18217937]
[1730503907445,0.54847916,69596.0,69595.0,0.18217937]
[1730503907669,0.5798734,69596.0,69595.0,0.18217937]
[1730503907888,0.43016361,69596.0,69595.0,0.18217937]
[1730503908123,0.44093559,69596.0,69595.0,0.18217937]
[1730503908337,0.54849673,69596.0,69595.0,0.18217937]
[1730503909464,0.28331672,69596.0,69595.0,0.18217937]
[1730503910568,0.42700272,69596.0,69595.0,0.18217937]
[1730503911474,0.41623074,69596.0,69595.0,0.18217937]
[1730503911922,0.42700549,69596.0,69595.0,0.18217937]
[1730503912360,0.2841714,69596.0,69595.0,0.18217937]
[1730503912567,0.19810427,69596.0,69595.0,0.42344143]
[1730503912988,0.03935695,69596.0,69595.0,0.42344143]
[1730503913374,0.02423973,69596.0,69595.0,0.42344143]
[1730503915173,0.000821,69597.0,69596.0,0.320886]
[1730503915390,0.01428199,69597.0,69596.0,0.32122337]
[1730503915614,0.02505076,69597.0,69596.0,0.32122337]
[1730503916483,0.02505076,69597.0,69596.0,0.32322337]
[1730503917298,0.02605076,69597.0,69596.0,0.32322337]
[1730503919044,0.02604508,69597.0,69596.0,0.32322337]
[1730503919287,0.02604508,69597.0,69596.0,0.32822337]
[1730503920423,0.02604508,69597.0,69596.0,0.33022337]
[1730503921699,0.01527082,69597.0,69596.0,0.33022337]
[1730503921914,0.02769808,69597.0,69596.0,0.33022337]
[1730503922133,0.0411479,69597.0,69596.0,0.33022337]
[1730503922564,0.04114674,69597.0,69596.0,0.33022337]
[1730503922984,0.02602952,69597.0,69596.0,0.33022337]
[1730503924661,0.02602952,69597.0,69596.0,0.32522337]
[1730503924867,0.02602952,69597.0,69596.0,0.32822337]
[1730503924997,0.04114874,69597.0,69596.0,0.32822337]
[1730503925404,0.04114874,69597.0,69596.0,0.32322337]
[1730503925790,0.03038628,69597.0,69596.0,0.32822337]
[1730503926269,0.04114313,69597.0,69596.0,0.32822337]
[1730503926481,0.05189998,69597.0,69596.0,0.33022337]
[1730503927343,0.03678076,69597.0,69596.0,0.33022337]
[1730503928368,0.03678076,69597.0,69596.0,0.33022336]
[1730503929023,0.03678076,69597.0,69596.0,0.32522336]
[1730503929238,0.03678076,69597.0,69596.0,0.33022336]
[1730503929665,0.0233347,69597.0,69596.0,0.33022336]
[1730503929909,0.03678162,69597.0,69596.0,0.33022336]
[1730503930320,0.03678162,69597.0,69596.0,0.33186536]
[1730503930535,0.03678162,69597.0,69596.0,0.32686536]
[1730503930747,0.03678162,69597.0,69596.0,0.33186536]
[1730503931201,0.03678162,69597.0,69596.0,0.32986536]
[1730503931844,0.04114399,69597.0,69596.0,0.32986536]
[1730503935153,0.04114399,69597.0,69596.0,0.33186536]
[1730503935349,0.04114399,69597.0,69596.0,0.32686536]
[1730503935555,0.02602477,69597.0,69596.0,0.33186536]
[1730503936347,0.02602477,69597.0,69596.0,0.32986536]
[1730503936763,0.04107051,69597.0,69596.0,0.32986536]
[1730503937412,0.04107051,69597.0,69596.0,0.32486536]
[1730503937591,0.04107051,69597.0,69596.0,0.32986536]
[1730503937845,0.01686674,69597.0,69596.0,0.32986536]
[1730503938048,0.04110377,69597.0,69596.0,0.32986536]
[1730503938221,0.05187578,69597.0,69596.0,0.32986536]
[1730503941344,0.03841076,69597.0,69596.0,0.32986536]
[1730503941555,0.02763875,69597.0,69596.0,0.32486536]
[1730503941766,0.04111439,69597.0,69596.0,0.33186536]
[1730503942827,0.04111439,69597.0,69596.0,0.32686536]
[1730503943038,0.02606865,69597.0,69596.0,0.33186536]
[1730503943244,0.01259301,69597.0,69596.0,0.33186536]
[1730503943448,0.02337653,69597.0,69596.0,0.33186536]
[1730503944077,0.03842227,69597.0,69596.0,0.33186536]
[1730503944282,0.05190168,69597.0,69596.0,0.33186536]
[1730503944688,0.03685594,69597.0,69596.0,0.33186536]
[1730503945509,0.05190168,69597.0,69596.0,0.33186536]
[1730503945732,0.03842227,69597.0,69596.0,0.33186536]
[1730503947282,0.02765026,69597.0,69596.0,0.18117936]
[1730503947486,0.02765026,69597.0,69596.0,0.32986536]
[1730503949109,0.02765026,69597.0,69596.0,0.18117936]
[1730503949313,0.02765026,69597.0,69596.0,0.00397936]
[1730503949314,0.07067503,69597.0,69596.0,0.00397936]
[1730503949474,0.49629829,69597.0,69596.0,0.00397936]
[1730503949679,0.41030659,69597.0,69596.0,0.00397936]
[1730503950228,0.25132596,69597.0,69596.0,0.00197936]
[1730503950430,0.40931008,69597.0,69596.0,0.00197936]
[1730503950587,0.41131008,69597.0,69596.0,0.00197936]
[1730503950986,0.37625847,69597.0,69596.0,0.00197936]
[1730503951205,0.41129812,69597.0,69596.0,0.00197936]
[1730503951636,0.41629812,69597.0,69596.0,0.00197936]
[1730503951887,0.41429812,69597.0,69596.0,0.00197936]
[1730503952085,0.255314,69597.0,69596.0,0.00197936]
[1730503952262,0.254314,69597.0,69596.0,0.00197936]
[1730503952441,0.261314,69597.0,69596.0,0.00297936]
[1730503955154,0.26129258,69597.0,69596.0,0.00297936]
[1730503957159,0.25050906,69597.0,69596.0,0.00297936]
[1730503958637,0.25049034,69597.0,69596.0,0.00297936]
[1730503961577,0.40951356,69597.0,69596.0,0.00297936]
[1730503962483,0.40950829,69597.0,69596.0,0.00297936]
[1730503964818,0.25048507,69597.0,69596.0,0.00297936]
[1730503966105,0.25048593,69597.0,69596.0,0.00297936]
[1730503966568,0.25048709,69597.0,69596.0,0.00297936]
[1730503968640,0.40945466,69597.0,69596.0,0.00297936]
[1730503969088,0.36451457,69597.0,69596.0,0.00297936]
[1730503969324,0.40937188,69597.0,69596.0,0.00297936]
[1730503969546,0.36451457,69597.0,69596.0,0.00297936]
[1730503969748,0.40937205,69597.0,69596.0,0.00297936]
[1730503970173,0.25040448,69597.0,69596.0,0.00297936]
[1730503973393,0.25042289,69597.0,69596.0,0.00297936]
[1730503973603,0.40938742,69597.0,69596.0,0.00297936]
[1730503974269,0.40938742,69597.0,69596.0,0.00015836]
[1730503974270,0.82921673,69597.0,69596.0,0.00015836]
[1730503974501,0.243721,69579.0,69578.0,0.001642]
[1730503974750,0.59915545,69579.0,69578.0,0.001642]
[1730503974965,0.80923341,69579.0,69578.0,0.001642]
[1730503975174,0.80019183,69579.0,69578.0,0.001642]
[1730503975379,0.63329057,69579.0,69578.0,0.001642]
[1730503976065,0.64029057,69579.0,69578.0,0.002642]
[1730503976900,0.62682339,69579.0,69578.0,0.002642]
[1730503977133,0.64027148,69579.0,69578.0,0.002642]
[1730503977339,0.64082339,69579.0,69578.0,0.002642]
[1730503977547,0.65427253,69579.0,69578.0,0.002642]
[1730503982969,0.78321927,69579.0,69578.0,0.002642]
[1730503983193,0.87132637,69579.0,69578.0,0.002642]
[1730503983470,0.66875124,69579.0,69578.0,0.002642]
[1730503984280,0.66875124,69579.0,69559.0,0.31107513]
[1730503984281,0.52503024,69579.0,69559.0,0.31107513]
[1730503984543,0.46161979,69572.0,69559.0,0.31107513]
[1730503984776,0.77248358,69572.0,69559.0,0.31107513]
[1730503984995,0.78327368,69572.0,69559.0,0.31107513]
[1730503985215,0.78327368,69572.0,69559.0,0.094]
[1730503985419,0.67596295,69572.0,69559.0,0.094]
[1730503986317,0.68996295,69572.0,69571.0,0.002642]
[1730503986547,0.68996295,69572.0,69571.0,0.001642]
[1730503986968,0.70096295,69572.0,69571.0,0.002642]
[1730503987437,0.78675926,69572.0,69571.0,0.002642]
[1730503987660,0.78674165,69572.0,69571.0,0.002642]
[1730503988322,0.70094534,69572.0,69571.0,0.002642]
[1730503989386,0.78672165,69572.0,69571.0,0.002642]
[1730503990879,0.78671693,69572.0,69571.0,0.002642]
[1730503991088,0.77331141,69572.0,69571.0,0.002642]
[1730503991459,0.78671693,69572.0,69571.0,0.002642]
[1730503991670,0.78602801,69572.0,69571.0,0.002642]
[1730503992569,0.74494739,69572.0,69571.0,0.002642]
[1730503992999,0.74494739,69572.0,69559.0,0.094]
[1730503993000,0.26674,69570.0,69559.0,0.094]
[1730503993210,0.62158823,69570.0,69559.0,0.094]
[1730503993394,0.63237559,69570.0,69559.0,0.094]
[1730503994492,0.14376,69560.0,69559.0,0.094]
[1730503994707,0.29562077,69560.0,69559.0,0.094]
[1730503995198,0.30640978,69560.0,69559.0,0.094]
[1730503995810,0.30962077,69560.0,69559.0,0.094]
[1730503996013,0.32040978,69560.0,69559.0,0.094]
[1730503996699,0.33440978,69560.0,69559.0,0.094]
[1730503998697,0.33441544,69560.0,69559.0,0.094]
[1730504000927,0.33441544,69560.0,69559.0,0.095642]
[1730504001943,0.3344311,69560.0,69559.0,0.095642]
[1730504005626,0.3452,69560.0,69559.0,0.095642]
[1730504005854,0.33446538,69560.0,69559.0,0.095642]
[1730504006063,0.34523428,69560.0,69559.0,0.095642]
[1730504007366,0.39004286,69560.0,69559.0,0.095642]
[1730504008198,0.34523428,69560.0,69559.0,0.095642]
[1730504008395,0.39008274,69560.0,69559.0,0.095642]
[1730504009792,0.39008937,69560.0,69559.0,0.095642]
[1730504010001,0.39009467,69560.0,69559.0,0.095642]
[1730504013391,0.4544269,69560.0,69559.0,0.095642]
[1730504013582,0.42225104,69560.0,69559.0,0.095642]
[1730504013876,0.43303188,69560.0,69559.0,0.095642]
[1730504014106,0.39010131,69560.0,69559.0,0.095642]
[1730504016078,0.45453935,69560.0,69559.0,0.095642]
[1730504016302,0.63466241,69560.0,69559.0,0.095642]
[1730504017313,0.54874502,69560.0,69559.0,0.095642]
[1730504017515,0.6562495,69560.0,69559.0,0.095642]
[1730504017761,0.54874502,69560.0,69559.0,0.095642]
[1730504017904,0.6562495,69560.0,69559.0,0.095642]
[1730504018107,0.65624717,69560.0,69559.0,0.095642]
[1730504018374,0.54874502,69560.0,69559.0,0.095642]
[1730504019844,0.67762111,69560.0,69559.0,0.095642]
[1730504020033,0.54874502,69560.0,69559.0,0.095642]
[1730504020462,0.67762111,69560.0,69559.0,0.095642]
[1730504020662,0.66415336,69560.0,69559.0,0.095642]
[1730504021128,0.6776379,69560.0,69559.0,0.095642]
[1730504021340,0.54876181,69560.0,69559.0,0.095642]
[1730504021550,0.53527727,69560.0,69559.0,0.095642]
[1730504021756,0.54876352,69560.0,69559.0,0.095642]
[1730504024771,0.54876352,69560.0,69559.0,0.09586754]
[1730504028074,0.53527727,69560.0,69559.0,0.09586754]
[1730504028292,0.54877783,69560.0,69559.0,0.09586754]
[1730504030682,0.54937411,69560.0,69559.0,0.09586754]
[1730504031580,0.54937552,69560.0,69559.0,0.09586754]
[1730504032011,0.54937665,69560.0,69559.0,0.09586754]
[1730504035527,0.5493785,69560.0,69559.0,0.09586754]
[1730504036500,0.69496935,69560.0,69559.0,0.09586754]
[1730504036998,0.5493785,69560.0,69559.0,0.09586754]
[1730504037133,0.69496935,69560.0,69559.0,0.09586754]
[1730504038726,0.67068356,69560.0,69559.0,0.09586754]
[1730504038895,0.68417883,69560.0,69559.0,0.09586754]
[1730504039100,0.69497504,69560.0,69559.0,0.09586754]
[1730504040300,0.69497504,69560.0,69559.0,0.09586756]
[1730504041194,0.68417886,69560.0,69559.0,0.09586756]
[1730504041406,0.6949751,69560.0,69559.0,0.09586756]
[1730504043090,0.6951832,69560.0,69559.0,0.09586756]
[1730504044842,0.68438619,69560.0,69559.0,0.09586756]
[1730504045057,0.69518181,69560.0,69559.0,0.09586756]
[1730504048046,0.6951811,69560.0,69559.0,0.09586756]
[1730504052298,0.69517935,69560.0,69559.0,0.09586756]
[1730504052500,0.54951703,69560.0,69559.0,0.09586756]
[1730504052713,0.6952328,69560.0,69559.0,0.09586756]
[1730504054275,0.69523265,69560.0,69559.0,0.09586756]
[1730504057125,0.69523711,69560.0,69559.0,0.09586756]
[1730504057355,0.69523711,69560.0,69559.0,0.09586757]
[1730504057785,0.69523627,69560.0,69559.0,0.09586757]
[1730504058877,0.57110759,69560.0,69559.0,0.0634769]
[1730504059089,0.56031306,69560.0,69559.0,0.0634769]
[1730504059308,0.57110747,69560.0,69559.0,0.0634769]
[1730504059742,0.65868153,69560.0,69559.0,0.0634769]
[1730504061329,0.65868197,69560.0,69559.0,0.0634769]
[1730504061755,0.65868435,69560.0,69559.0,0.0634769]
[1730504062857,0.62360208,69560.0,69559.0,0.0634769]
[1730504063080,0.65868507,69560.0,69559.0,0.0634769]
[1730504066344,0.658688,69560.0,69559.0,0.0634769]
[1730504067451,0.53603122,69560.0,69559.0,0.0634769]
[1730504067667,0.57111571,69560.0,69559.0,0.0634769]
[1730504067881,0.53603164,69560.0,69559.0,0.0634769]
[1730504068091,0.5711157,69560.0,69559.0,0.0634769]
[1730504068919,0.71683805,69560.0,69559.0,0.0634769]
[1730504070911,0.71684013,69560.0,69559.0,0.0634769]
[1730504073366,0.71684531,69560.0,69559.0,0.0634769]
[1730504073714,0.70605021,69560.0,69559.0,0.0634769]
[1730504073865,0.71684689,69560.0,69559.0,0.0634769]
[1730504076186,0.41173864,69560.0,69559.0,0.0634769]
[1730504078640,0.71685781,69560.0,69559.0,0.0634769]
[1730504078855,0.71685781,69560.0,69559.0,0.06347691]
[1730504080402,0.67097189,69560.0,69559.0,0.06347691]
[1730504080623,0.71685774,69560.0,69559.0,0.06347691]
[1730504081175,0.41173857,69560.0,69559.0,0.06347691]
[1730504082941,0.41256057,69560.0,69559.0,0.06347691]
[1730504083548,0.7176936,69560.0,69559.0,0.06347691]
[1730504084370,0.71769363,69560.0,69559.0,0.06347691]
[1730504086008,0.71770301,69560.0,69559.0,0.06347691]
[1730504088589,0.57196335,69560.0,69559.0,0.06347691]
[1730504091071,0.69496335,69560.0,69559.0,0.00186758]
[1730504091214,0.266762,69559.0,69558.0,6.95200575]
[1730504091413,0.65535434,69559.0,69558.0,6.95200575]
[1730504091663,0.81396349,69559.0,69558.0,6.95200575]
[1730504092096,0.79237013,69559.0,69558.0,6.95200575]
[1730504092476,0.66061292,69559.0,69558.0,6.95200575]
[1730504092681,0.67461292,69559.0,69558.0,6.95200575]
[1730504093320,0.82037013,69559.0,69558.0,6.95200575]
[1730504093466,0.67461292,69559.0,69558.0,6.95200575]
[1730504094707,0.66381625,69559.0,69558.0,6.95200575]
[1730504094929,0.67460563,69559.0,69558.0,6.95200575]
[1730504095109,0.68538593,69559.0,69558.0,6.95200575]
[1730504095303,0.68531473,69559.0,69558.0,6.95200575]
[1730504095509,0.67452535,69559.0,69558.0,6.95200575]
[1730504098164,0.69703815,69559.0,69558.0,6.95200575]
[1730504100129,0.6969243,69559.0,69558.0,6.95200575]
[1730504100341,0.7438243,69559.0,69558.0,6.80824075]
[1730504100552,0.8001243,69559.0,69558.0,6.80824075]
[1730504100966,0.6969243,69559.0,69558.0,6.80824075]
[1730504101121,0.8424948,69559.0,69558.0,6.80824075]
[1730504101471,0.6829243,69559.0,69558.0,6.80824075]
[1730504101631,0.6689243,69559.0,69558.0,6.80824075]
[1730504101858,0.6829243,69559.0,69558.0,6.80824075]
[1730504102087,0.6969243,69559.0,69558.0,6.80824075]
[1730504102416,0.6829243,69559.0,69558.0,6.80824075]
[1730504102628,0.6969243,69559.0,69558.0,6.80824075]
[1730504103167,0.69685007,69559.0,69558.0,6.80824075]
[1730504104622,0.68605651,69559.0,69558.0,6.80824075]
[1730504104864,0.69682938,69559.0,69558.0,6.80824075]
[1730504106544,0.69765138,69559.0,69558.0,6.80824075]
[1730504108009,0.68687467,69559.0,69558.0,6.80824075]
[1730504108235,0.69764447,69559.0,69558.0,6.80824075]
[1730504110897,0.69764447,69559.0,69558.0,6.89994075]
[1730504111418,0.68418222,69559.0,69558.0,6.89994075]
[1730504111622,0.69764231,69559.0,69558.0,6.89994075]
[1730504115087,0.697645,69559.0,69558.0,6.89994075]
[1730504115320,0.697645,69559.0,69558.0,6.98054075]
[1730504115321,0.674645,69559.0,69558.0,6.98054075]
[1730504115555,0.77326839,69559.0,69558.0,6.98054075]
[1730504115752,0.62789962,69559.0,69558.0,6.98054075]
[1730504115952,0.64136414,69559.0,69558.0,6.98054075]
[1730504116175,0.65213576,69559.0,69558.0,6.98054075]
[1730504116520,0.55213576,69559.0,69558.0,6.98054075]
[1730504116742,0.57513576,69559.0,69558.0,6.98054075]
[1730504117719,0.67513576,69559.0,69558.0,6.98054075]
[1730504120367,0.69668961,69559.0,69558.0,6.94814734]
[1730504121323,0.67513576,69559.0,69558.0,6.94814734]
[1730504122150,0.6751458,69559.0,69558.0,6.94814734]
[1730504125547,0.80437399,69559.0,69558.0,6.94814734]
[1730504126224,0.79089943,69559.0,69558.0,6.94814734]
[1730504126432,0.81515236,69559.0,69558.0,6.94814734]
[1730504126843,0.80438074,69559.0,69558.0,6.94814734]
[1730504130251,0.67515255,69559.0,69558.0,6.94814734]
[1730504133322,0.67514927,69559.0,69558.0,6.94814734]
[1730504135715,0.67511824,69559.0,69558.0,6.94814734]
[1730504136392,0.5159893,69559.0,69558.0,6.94814734]
[1730504136891,0.66165464,69559.0,69558.0,6.94814734]
[1730504137096,0.51599067,69559.0,69558.0,6.94814734]
[1730504137762,0.67513029,69559.0,69558.0,6.94814734]
[1730504140673,0.65087927,69559.0,69558.0,6.94814734]
[1730504141077,0.67514001,69559.0,69558.0,6.94814734]
[1730504141282,0.67512925,69559.0,69558.0,6.94814734]
[1730504144417,0.66165106,69559.0,69558.0,6.94814734]
[1730504144623,0.67513648,69559.0,69558.0,6.94814734]
[1730504148275,0.65086851,69559.0,69558.0,6.94814734]
[1730504148507,0.66435767,69559.0,69558.0,6.94814734]
[1730504148773,0.675149,69559.0,69558.0,6.94814734]
[1730504150751,0.70446888,69559.0,69558.0,6.94814734]
[1730504150975,0.57514992,69559.0,69558.0,6.94814734]
[1730504151861,0.56114992,69559.0,69558.0,6.94814734]
[1730504152079,0.56114612,69559.0,69558.0,6.94814734]
[1730504152265,0.54714612,69559.0,69558.0,6.94814734]
[1730504152504,0.56114612,69559.0,69558.0,6.94814734]
[1730504152734,0.57514612,69559.0,69558.0,6.94814734]
[1730504154839,0.43669087,69559.0,69558.0,6.94814734]
[1730504155296,0.43669785,69559.0,69558.0,6.94814734]
[1730504155933,0.41369785,69559.0,69558.0,6.94814734]
[1730504159398,0.41368891,69559.0,69558.0,6.94814734]
[1730504159814,0.40290652,69559.0,69558.0,6.94814734]
[1730504160250,0.41368859,69559.0,69558.0,6.94814734]
[1730504160907,0.40083665,69559.0,69558.0,6.94814734]
[1730504161982,0.40083687,69559.0,69558.0,6.94814734]
[1730504162625,0.35598841,69559.0,69558.0,6.94814734]
[1730504163371,0.35598087,69559.0,69558.0,6.94814734]
[1730504165729,0.34519858,69559.0,69558.0,6.94814734]
[1730504165912,0.35598055,69559.0,69558.0,6.94814734]
[1730504166785,0.37754441,69559.0,69558.0,6.94814734]
[1730504167211,0.4224682,69559.0,69558.0,6.94814734]
[1730504167910,0.37757321,69559.0,69558.0,6.94814734]
[1730504168340,0.42249822,69559.0,69558.0,6.94814734]
[1730504169421,0.3775737,69559.0,69558.0,6.94814734]
[1730504170278,0.42249913,69559.0,69558.0,6.94814734]
[1730504170708,0.43553289,69559.0,69558.0,6.94814734]
[1730504172174,0.39060746,69559.0,69558.0,6.94814734]
[1730504172359,0.2314419,69559.0,69558.0,6.94814734]
[1730504172564,0.37757564,69559.0,69558.0,6.94814734]
[1730504173022,0.3425347,69559.0,69558.0,6.94814734]
[1730504173235,0.42250694,69559.0,69558.0,6.94814734]
[1730504173662,0.4355407,69559.0,69558.0,6.94814734]
[1730504176672,0.40049821,69559.0,69558.0,6.94814734]
[1730504176890,0.43555307,69559.0,69558.0,6.94814734]
[1730504179754,0.39062623,69559.0,69558.0,6.90814734]
[1730504180180,0.37759247,69559.0,69558.0,6.90814734]
[1730504181922,0.37763706,69559.0,69558.0,6.90814734]
[1730504183831,0.34527873,69559.0,69558.0,6.90814734]
[1730504184037,0.36688098,69559.0,69558.0,6.90814734]
[1730504184901,0.37767633,69559.0,69558.0,6.90814734]
[1730504188553,0.36688098,69559.0,69558.0,6.90814734]
[1730504189182,0.35338679,69559.0,69558.0,6.90814734]
[1730504189559,0.37677557,69559.0,69558.0,6.90814734]
[1730504190576,0.41186119,69559.0,69558.0,6.90814734]
[1730504190831,0.37677557,69559.0,69558.0,6.90814734]
[1730504191391,0.4226568,69559.0,69558.0,6.90814734]
[1730504194047,0.37677557,69559.0,69558.0,6.90814734]
[1730504194270,0.42265697,69559.0,69558.0,6.90814734]
[1730504197009,0.42265696,69559.0,69558.0,6.90814734]
[1730504197868,0.26344487,69559.0,69558.0,6.90814734]
[1730504199103,0.42283902,69559.0,69558.0,6.90814734]
[1730504201545,0.38775324,69559.0,69558.0,6.90814734]
[1730504201702,0.42283924,69559.0,69558.0,6.90814734]
[1730504205601,0.3877533,69559.0,69558.0,6.90814734]
[1730504205829,0.41204385,69559.0,69558.0,6.90814734]
[1730504206040,0.42283961,69559.0,69558.0,6.90814734]
[1730504207092,0.26344546,69559.0,69558.0,6.90814734]
[1730504207308,0.66292146,69559.0,69558.0,6.90814734]
[1730504207522,0.58430158,69559.0,69558.0,6.90814734]
[1730504207732,0.58430158,69559.0,69558.0,6.82754734]
[1730504210086,0.56000942,69559.0,69558.0,6.82754734]
[1730504210297,0.58429797,69559.0,69558.0,6.82754734]
[1730504210857,0.58429704,69559.0,69558.0,6.82754734]
[1730504211242,0.58429704,69559.0,69558.0,6.90864734]
[1730504211451,0.58429675,69559.0,69558.0,6.90864734]
[1730504211651,0.5627075,69559.0,69558.0,6.90864734]
[1730504212663,0.56269797,69559.0,69558.0,6.90864734]
[1730504213274,0.56269711,69559.0,69558.0,6.90864734]
[1730504213473,0.40124186,69559.0,69558.0,6.90864734]
[1730504213666,0.39044762,69559.0,69558.0,6.90864734]
[1730504213871,0.40124173,69559.0,69558.0,6.90864734]
[1730504216407,0.40123526,69559.0,69558.0,6.90864734]
[1730504219944,0.41426951,69559.0,69558.0,6.90864734]
[1730504220803,0.41426572,69559.0,69558.0,6.90864734]
[1730504221013,0.41426477,69559.0,69558.0,6.90864734]
[1730504224038,0.43726477,69559.0,69558.0,6.90864734]
[1730504224259,0.57572002,69559.0,69558.0,6.90864734]
[1730504224454,0.57571706,69559.0,69558.0,6.90864734]
[1730504225858,0.56222486,69559.0,69558.0,6.90864734]
[1730504226057,0.57571762,69559.0,69558.0,6.90864734]
[1730504226695,0.57571613,69559.0,69558.0,6.90864734]
[1730504230482,0.57571432,69559.0,69558.0,6.90864734]
[1730504234385,0.5514311,69559.0,69558.0,6.90864734]
[1730504234611,0.57571123,69559.0,69558.0,6.90864734]
[1730504241404,0.56222227,69559.0,69558.0,6.90864734]
[1730504241631,0.57571183,69559.0,69558.0,6.90864734]
[1730504242925,0.57566453,69559.0,69558.0,6.90864734]
[1730504243975,0.57566453,69559.0,69558.0,6.82754734]
[1730504244234,0.56263028,69559.0,69558.0,6.82754734]
[1730504245312,0.56262988,69559.0,69558.0,6.82754734]
[1730504248929,0.54914072,69559.0,69558.0,6.82754734]
[1730504249145,0.56263044,69559.0,69558.0,6.82754734]
[1730504251552,0.53834955,69559.0,69558.0,6.82754734]
[1730504253454,0.55183925,69559.0,69558.0,6.82754734]
[1730504254802,0.53834955,69559.0,69558.0,6.82754734]
[1730504256201,0.63834955,69559.0,69558.0,6.82754734]
[1730504256606,0.65137779,69559.0,69558.0,6.82754734]
[1730504257196,0.86845292,69559.0,69558.0,6.82754734]
[1730504257402,0.65137779,69559.0,69558.0,6.82754734]
[1730504257836,0.66217034,69559.0,69558.0,6.82754734]
[1730504258046,0.67566314,69559.0,69558.0,6.82754734]
[1730504258249,0.67566323,69559.0,69558.0,6.82754734]
[1730504261715,0.67566455,69559.0,69558.0,6.82754734]
[1730504262148,0.67566309,69559.0,69558.0,6.82754734]
[1730504263009,0.89273822,69559.0,69558.0,6.73584734]
[1730504263223,0.96781556,69559.0,69558.0,6.73584734]
[1730504263464,0.67566309,69559.0,69558.0,6.90894734]
[1730504264085,0.66263485,69559.0,69558.0,6.90894734]
[1730504265140,0.65184286,69559.0,69558.0,6.90894734]
[1730504265355,0.66263249,69559.0,69558.0,6.90894734]
[1730504266313,0.66261573,69559.0,69558.0,6.90894734]
[1730504268369,0.66260808,69559.0,69558.0,6.90894734]
[1730504268580,0.64911809,69559.0,69558.0,6.90894734]
[1730504268731,0.67339455,69559.0,69558.0,6.90894734]
[1730504269147,0.66260492,69559.0,69558.0,6.90894734]
[1730504271017,0.66260198,69559.0,69558.0,6.90894734]
[1730504272365,0.64911506,69559.0,69558.0,6.90894734]
[1730504272568,0.66260174,69559.0,69558.0,6.90894734]
[1730504272785,0.66260171,69559.0,69558.0,6.90894734]
[1730504275682,0.66258699,69559.0,69558.0,6.90894734]
[1730504276570,0.51882499,69559.0,69558.0,6.90894734]
[1730504276938,0.66258699,69559.0,69558.0,6.90894734]
[1730504277322,0.67551953,69559.0,69558.0,6.90894734]
[1730504279627,0.65124334,69559.0,69558.0,6.90894734]
[1730504279856,0.67552251,69559.0,69558.0,6.90894734]
[1730504280299,0.67551746,69559.0,69558.0,6.90894734]
[1730504280517,0.69709948,69559.0,69558.0,6.90894734]
[1730504282285,0.68631011,69559.0,69558.0,6.90894734]
[1730504282539,0.69710144,69559.0,69558.0,6.90894734]
[1730504284494,0.91417657,69559.0,69558.0,6.73584734]
[1730504284721,0.69710144,69559.0,69558.0,6.73584734]
[1730504285889,0.65123829,69559.0,69558.0,6.73584734]
[1730504286104,0.68630745,69559.0,69558.0,6.73584734]
[1730504286327,0.69709796,69559.0,69558.0,6.73584734]
[1730504286581,0.69709796,69559.0,69558.0,6.70345269]
[1730504286800,0.67551694,69559.0,69558.0,6.70345269]
[1730504287489,0.67551694,69559.0,69558.0,6.79855269]
[1730504288338,0.6625844,69559.0,69558.0,6.79855269]
[1730504288543,0.67551895,69559.0,69558.0,6.79855269]
[1730504289231,0.82115413,69559.0,69558.0,6.79855269]
[1730504289446,0.67551895,69559.0,69558.0,6.79855269]
[1730504292863,0.67546714,69559.0,69558.0,6.79855269]
[1730504294842,0.82105621,69559.0,69558.0,6.79855269]
[1730504295052,0.67546714,69559.0,69558.0,6.79855269]
[1730504296777,0.65119133,69559.0,69558.0,6.79855269]
[1730504296961,0.67546094,69559.0,69558.0,6.79855269]
[1730504300514,0.68624798,69559.0,69558.0,6.79855269]
[1730504300704,0.67546149,69559.0,69558.0,6.79855269]
[1730504302044,0.82104965,69559.0,69558.0,6.87705269]
[1730504302435,0.8081151,69559.0,69558.0,6.87705269]
[1730504304149,0.79732806,69559.0,69558.0,6.87705269]
[1730504304381,0.80811537,69559.0,69558.0,6.87705269]
[1730504306545,0.80817457,69559.0,69558.0,6.87705269]
[1730504307393,0.66255766,69559.0,69558.0,6.87705269]
[1730504307820,0.80817996,69559.0,69558.0,6.87705269]
[1730504311084,0.80819542,69559.0,69558.0,6.87705269]
[1730504315024,0.65178157,69559.0,69558.0,6.87705269]
[1730504315565,0.67550288,69559.0,69558.0,6.87705269]
[1730504316385,0.67550209,69559.0,69558.0,6.87705269]
[1730504317688,0.67550088,69559.0,69558.0,6.87705269]
[1730504317913,0.67280443,69559.0,69558.0,6.87705269]
[1730504318130,0.6755007,69559.0,69558.0,6.87705269]
[1730504318349,0.65123267,69559.0,69558.0,6.87705269]
[1730504318604,0.66471459,69559.0,69558.0,6.87705269]
[1730504318778,0.66470136,69559.0,69558.0,6.87705269]
[1730504321905,0.65121944,69559.0,69558.0,6.87705269]
[1730504322125,0.66470232,69559.0,69558.0,6.87705269]
[1730504322350,0.52624707,69559.0,69558.0,6.87705269]
[1730504322574,0.40324707,69559.0,69558.0,6.87705269]
[1730504322791,0.25943811,69559.0,69558.0,6.87705269]
[1730504323017,0.34533304,69559.0,69558.0,6.87705269]
[1730504324088,0.34533304,69559.0,69558.0,6.87905269]
[1730504324301,0.34533304,69559.0,69558.0,6.87705269]
[1730504325377,0.33185016,69559.0,69558.0,6.87705269]
[1730504325585,0.33175998,69559.0,69558.0,6.87705269]
[1730504325807,0.34523941,69559.0,69558.0,6.87705269]
[1730504327032,0.20147741,69559.0,69558.0,6.87705269]
[1730504327266,0.20147741,69559.0,69558.0,6.88205269]
[1730504328218,0.30924401,69559.0,69558.0,6.88205269]
[1730504328650,0.30924401,69559.0,69558.0,6.88405269]
[1730504329035,0.29576458,69559.0,69558.0,6.88405269]
[1730504329419,0.30923922,69559.0,69558.0,6.88405269]
[1730504330277,0.20140452,69559.0,69558.0,6.88405269]
[1730504331866,0.28759507,69559.0,69558.0,6.88405269]
[1730504333526,0.28759507,69559.0,69558.0,6.88205269]
[1730504334813,0.28752295,69559.0,69558.0,6.88205269]
[1730504335376,0.28752295,69559.0,69558.0,6.88405269]